{"text_format":"1","workbook":"xlsx","n_sheets":28,"sheets":["Tümü","Ali","Bedriye Müge","Bahattin","Gamze","Irazca","Nalan","Mansur Kürşad","Barış","Birsen","Semih","Serkan","Ferdi","Ergün","Jale","Bünyamin","Serdal","Gülşah","Fatih","Emre","Hatice","Kubilay","Yücel","Hayati","Rezan","Reyhan","Miraç","Mahmut"],"not_rendered":{"charts":0,"images":0,"macros":1,"external_links":0,"defined_names":0,"comments":0,"pivot_tables":0},"unopened":[],"bounds":{"document_bytes":16777216,"sheet_cells":100000,"rows_first":2000,"rows_last":500,"rows_between":2000,"halvings":0,"cell_chars":16384,"cell_head_chars":4096},"cells_cut":0,"cells_raw":0,"read":"whole","date_system":"1900"}

{"sheet":"Tümü","index":0,"n_rows":0,"n_cols":0,"rows_kept":0,"cut":false,"hidden":false,"merged":[]}

{"sheet":"Ali","index":1,"n_rows":1,"n_cols":1,"rows_kept":1,"cut":false,"hidden":false,"merged":[]}
["Ali"]

{"sheet":"Bedriye Müge","index":2,"n_rows":1,"n_cols":1,"rows_kept":1,"cut":false,"hidden":false,"merged":[]}
["Bedriye Müge"]

{"sheet":"Bahattin","index":3,"n_rows":1,"n_cols":1,"rows_kept":1,"cut":false,"hidden":false,"merged":[]}
["Bahattin"]

{"sheet":"Gamze","index":4,"n_rows":1,"n_cols":1,"rows_kept":1,"cut":false,"hidden":false,"merged":[]}
[{"$f":"MID(CELL(\"dosyaadı\"),FIND(\"]\",CELL(\"dosyaadı\"))+1,9999)","v":"Tümü"}]

{"sheet":"Irazca","index":5,"n_rows":1,"n_cols":1,"rows_kept":1,"cut":false,"hidden":false,"merged":[]}
[{"$f":"MID(CELL(\"dosyaadı\"),FIND(\"]\",CELL(\"dosyaadı\"))+1,9999)","v":"Tümü"}]

{"sheet":"Nalan","index":6,"n_rows":1,"n_cols":1,"rows_kept":1,"cut":false,"hidden":false,"merged":[]}
[{"$f":"MID(CELL(\"dosyaadı\"),FIND(\"]\",CELL(\"dosyaadı\"))+1,9999)","v":"Tümü"}]

{"sheet":"Mansur Kürşad","index":7,"n_rows":1,"n_cols":1,"rows_kept":1,"cut":false,"hidden":false,"merged":[]}
[{"$f":"MID(CELL(\"dosyaadı\"),FIND(\"]\",CELL(\"dosyaadı\"))+1,9999)","v":"Tümü"}]

{"sheet":"Barış","index":8,"n_rows":1,"n_cols":1,"rows_kept":1,"cut":false,"hidden":false,"merged":[]}
[{"$f":"MID(CELL(\"dosyaadı\"),FIND(\"]\",CELL(\"dosyaadı\"))+1,9999)","v":"Tümü"}]

{"sheet":"Birsen","index":9,"n_rows":1,"n_cols":1,"rows_kept":1,"cut":false,"hidden":false,"merged":[]}
[{"$f":"MID(CELL(\"dosyaadı\"),FIND(\"]\",CELL(\"dosyaadı\"))+1,9999)","v":"Tümü"}]

{"sheet":"Semih","index":10,"n_rows":1,"n_cols":1,"rows_kept":1,"cut":false,"hidden":false,"merged":[]}
[{"$f":"MID(CELL(\"dosyaadı\"),FIND(\"]\",CELL(\"dosyaadı\"))+1,9999)","v":"Tümü"}]

{"sheet":"Serkan","index":11,"n_rows":1,"n_cols":1,"rows_kept":1,"cut":false,"hidden":false,"merged":[]}
[{"$f":"MID(CELL(\"dosyaadı\"),FIND(\"]\",CELL(\"dosyaadı\"))+1,9999)","v":"Tümü"}]

{"sheet":"Ferdi","index":12,"n_rows":1,"n_cols":1,"rows_kept":1,"cut":false,"hidden":false,"merged":[]}
[{"$f":"MID(CELL(\"dosyaadı\"),FIND(\"]\",CELL(\"dosyaadı\"))+1,9999)","v":"Tümü"}]

{"sheet":"Ergün","index":13,"n_rows":1,"n_cols":1,"rows_kept":1,"cut":false,"hidden":false,"merged":[]}
[{"$f":"MID(CELL(\"dosyaadı\"),FIND(\"]\",CELL(\"dosyaadı\"))+1,9999)","v":"Tümü"}]

{"sheet":"Jale","index":14,"n_rows":1,"n_cols":1,"rows_kept":1,"cut":false,"hidden":false,"merged":[]}
[{"$f":"MID(CELL(\"dosyaadı\"),FIND(\"]\",CELL(\"dosyaadı\"))+1,9999)","v":"Tümü"}]

{"sheet":"Bünyamin","index":15,"n_rows":1,"n_cols":1,"rows_kept":1,"cut":false,"hidden":false,"merged":[]}
[{"$f":"MID(CELL(\"dosyaadı\"),FIND(\"]\",CELL(\"dosyaadı\"))+1,9999)","v":"Tümü"}]

{"sheet":"Serdal","index":16,"n_rows":1,"n_cols":1,"rows_kept":1,"cut":false,"hidden":false,"merged":[]}
[{"$f":"MID(CELL(\"dosyaadı\"),FIND(\"]\",CELL(\"dosyaadı\"))+1,9999)","v":"Tümü"}]

{"sheet":"Gülşah","index":17,"n_rows":1,"n_cols":1,"rows_kept":1,"cut":false,"hidden":false,"merged":[]}
[{"$f":"MID(CELL(\"dosyaadı\"),FIND(\"]\",CELL(\"dosyaadı\"))+1,9999)","v":"Tümü"}]

{"sheet":"Fatih","index":18,"n_rows":1,"n_cols":1,"rows_kept":1,"cut":false,"hidden":false,"merged":[]}
[{"$f":"MID(CELL(\"dosyaadı\"),FIND(\"]\",CELL(\"dosyaadı\"))+1,9999)","v":"Tümü"}]

{"sheet":"Emre","index":19,"n_rows":1,"n_cols":1,"rows_kept":1,"cut":false,"hidden":false,"merged":[]}
[{"$f":"MID(CELL(\"dosyaadı\"),FIND(\"]\",CELL(\"dosyaadı\"))+1,9999)","v":"Tümü"}]

{"sheet":"Hatice","index":20,"n_rows":1,"n_cols":1,"rows_kept":1,"cut":false,"hidden":false,"merged":[]}
[{"$f":"MID(CELL(\"dosyaadı\"),FIND(\"]\",CELL(\"dosyaadı\"))+1,9999)","v":"Tümü"}]

{"sheet":"Kubilay","index":21,"n_rows":1,"n_cols":1,"rows_kept":1,"cut":false,"hidden":false,"merged":[]}
[{"$f":"MID(CELL(\"dosyaadı\"),FIND(\"]\",CELL(\"dosyaadı\"))+1,9999)","v":"Tümü"}]

{"sheet":"Yücel","index":22,"n_rows":1,"n_cols":1,"rows_kept":1,"cut":false,"hidden":false,"merged":[]}
[{"$f":"MID(CELL(\"dosyaadı\"),FIND(\"]\",CELL(\"dosyaadı\"))+1,9999)","v":"Tümü"}]

{"sheet":"Hayati","index":23,"n_rows":1,"n_cols":1,"rows_kept":1,"cut":false,"hidden":false,"merged":[]}
[{"$f":"MID(CELL(\"dosyaadı\"),FIND(\"]\",CELL(\"dosyaadı\"))+1,9999)","v":"Tümü"}]

{"sheet":"Rezan","index":24,"n_rows":1,"n_cols":1,"rows_kept":1,"cut":false,"hidden":false,"merged":[]}
[{"$f":"MID(CELL(\"dosyaadı\"),FIND(\"]\",CELL(\"dosyaadı\"))+1,9999)","v":"Tümü"}]

{"sheet":"Reyhan","index":25,"n_rows":1,"n_cols":1,"rows_kept":1,"cut":false,"hidden":false,"merged":[]}
[{"$f":"MID(CELL(\"dosyaadı\"),FIND(\"]\",CELL(\"dosyaadı\"))+1,9999)","v":"Tümü"}]

{"sheet":"Miraç","index":26,"n_rows":1,"n_cols":1,"rows_kept":1,"cut":false,"hidden":false,"merged":[]}
[{"$f":"MID(CELL(\"dosyaadı\"),FIND(\"]\",CELL(\"dosyaadı\"))+1,9999)","v":"Tümü"}]

{"sheet":"Mahmut","index":27,"n_rows":1,"n_cols":1,"rows_kept":1,"cut":false,"hidden":false,"merged":[]}
[{"$f":"MID(CELL(\"dosyaadı\"),FIND(\"]\",CELL(\"dosyaadı\"))+1,9999)","v":"Tümü"}]